[Event "FIDE Open World Rapid 2024"]
[Site "New York"]
[Date "2024.12.28"]
[Round "9.28"]
[White "Dragnev, Valentin"]
[Black "Escobar Forero, Alder"]
[Result "0-1"]
[ECO "B01"]
[WhiteElo "2563"]
[BlackElo "2420"]
[Annotator "ChessBase"]
[PlyCount "72"]
[EventDate "2024.12.14"]
[EventType "swiss"]
[EventCountry "USA"]
[SourceTitle "playchess.com"]
[Source "ChessBase"]
[SourceQuality "1"]
[TimeControl "900+10"]

1. e4 {[%emt 0:00:01]} d5 {[%emt 0:00:04]} 2. exd5 {[%emt 0:00:04]} Qxd5 {[%emt 0:00:02]} 3. Nc3 {[%emt 0:00:03]} Qd6 {[%emt 0:00:01]} 4. d4 {[%emt 0:00:04]} Nf6 {[%emt 0:00:05]} 5. Nf3 {[%emt 0:00:05]} a6 {[%emt 0:00:05]} 6. g3 {[%emt 0:00:06]} g6 {[%emt 0:00:04]} 7. Bf4 {[%emt 0:00:37]} Qb6 {[%emt 0:00:17]} 8. Rb1 {[%emt 0:02:45]} Bg7 {[%emt 0:02:28]} 9. Bg2 {[%emt 0:00:02]} O-O {[%emt 0:00:03]} 10. O-O {[%emt 0:00:03]} Bf5 {[%emt 0:00:28]} 11. Re1 {[%emt 0:01:32]} Nc6 {[%emt 0:00:41]} 12. d5 {[%emt 0:03:47]} Rad8 {[%emt 0:00:22]} 13. Be3 {[%emt 0:03:48]} Qa5 {[%emt 0:00:19]} 14. Nd2 {[%emt 0:00:25]} Nxd5 {[%emt 0:02:07]} 15. Nxd5 {[%emt 0:02:12]} Rxd5 {[%emt 0:00:02]} 16. Bxd5 {[%emt 0:00:02]} Qxd5 {[%emt 0:00:02]} 17. Nb3 {[%emt 0:00:23]} Qxd1 {[%emt 0:00:44]} 18. Rbxd1 {[%emt 0:00:02]} Bxc2 {[%emt 0:00:25]} 19. Rd2 {[%emt 0:00:39]} Bf5 {[%emt 0:03:25]} 20. f4 {[%emt 0:00:40]} e5 {[%emt 0:01:34]} 21. Nc5 {[%emt 0:00:09]} exf4 {[%emt 0:00:24]} 22. Bxf4 {[%emt 0:00:53]} Bd4+ {[%emt 0:00:23]} 23. Rxd4 {[%emt 0:00:18]} Nxd4 {[%emt 0:00:02]} 24. Re7 {[%emt 0:00:14]} b6 {[%emt 0:02:21]} 25. Nxa6 {[%emt 0:00:03]} c6 {[%emt 0:00:02]} 26. Nb4 {[%emt 0:00:17]} Rc8 {[%emt 0:01:35]} 27. Rb7 {[%emt 0:00:07]} b5 {[%emt 0:00:06]} 28. Re7 {[%emt 0:00:16]} Be6 {[%emt 0:00:10]} 29. a3 {[%emt 0:00:03]} c5 {[%emt 0:00:09]} 30. Nd3 {[%emt 0:00:03]} Ne2+ {[%emt 0:00:01]} 31. Kf2 {[%emt 0:00:02]} Nxf4 {[%emt 0:00:07]} 32. Nxf4 {[%emt 0:00:01]} Bc4 {[%emt 0:00:09]} 33. Re3 {[%emt 0:00:16]} Rc6 {[%emt 0:00:55]} 34. Re7 {[%emt 0:00:25]} Kg7 {[%emt 0:00:10]} 35. Rb7 {[%emt 0:00:05]} g5 {[%emt 0:00:09]} 36. Ne2 {[%emt 0:00:16]} Rf6+ {[%emt 0:00:04]} 0-1

[Event "FIDE Open World Rapid 2024"]
[Site "New York"]
[Date "2024.12.27"]
[Round "9.28"]
[White "Nogerbek, Kazybek"]
[Black "Le, Quang Liem"]
[Result "1/2-1/2"]
[ECO "D35"]
[WhiteElo "2527"]
[BlackElo "2739"]
[Annotator "TA"]
[PlyCount "122"]
[EventDate "2024.12.14"]
[EventType "swiss"]
[EventCountry "USA"]
[SourceTitle "playchess.com"]
[Source "ChessBase"]
[SourceQuality "1"]
[TimeControl "900+10"]

{[%evp 47,122,-147,-75,-96,-36,-47,-36,-64,-27,-46,-32,-82,-75,-118,-93,-86,-53,-64,-46,-52,-48,-29,-27,-36,-43,-35,-34,-45,-33,-33,-8,-11,0,0,0,0,0,0,0,0,0,0,8,8,47,2,0,8,45,51,70,10,20,8,8,8,21,8,8,0,0,0,0,0,0,0,0,0,0,0,0,0,0,0,0,0,0]} 1. d4 {[%emt 0:00:45]} Nf6 {[%emt 0:00:02]} 2. c4 {[%emt 0:00:01]} e6 {[%emt 0:00:01]} 3. Nf3 {[%emt 0:00:02]} d5 {[%emt 0:00:02]} 4. cxd5 {[%emt 0:00:02]} exd5 {[%emt 0:00:01]} 5. Nc3 {[%emt 0:00:03]} c6 {[%emt 0:00:08]} 6. Qc2 {[%emt 0:00:01]} g6 {[%emt 0:01:02]} 7. h3 {[%emt 0:00:02]} Bf5 {[%emt 0:00:04]} 8. Qb3 {[%emt 0:00:02]} Qb6 {[%emt 0:00:01]} 9. g4 {[%emt 0:00:01]} Be4 {[%emt 0:00:25]} 10. Bg2 {[%emt 0:01:07]} Bg7 {[%emt 0:00:37]} 11. Bf4 {[%emt 0:00:19]} O-O {[%emt 0:00:37]} 12. e3 {[%emt 0:00:12]} Nbd7 {[%emt 0:01:16]} 13. Nxe4 {[%emt 0:00:38]} Nxe4 {[%emt 0:00:03]} 14. Nd2 {[%emt 0:00:22]} Nxd2 {[%emt 0:00:41]} 15. Qxb6 {[%emt 0:00:13]} axb6 {[%emt 0:00:08]} 16. Kxd2 {[%emt 0:00:02]} b5 {[%emt 0:00:09]} 17. h4 {[%emt 0:00:18]} Ra4 {[%emt 0:01:48]} 18. Bd6 {[%emt 0:00:51]} Rfa8 {[%emt 0:00:02]} 19. a3 {[%emt 0:00:01]} Bf8 {[%emt 0:00:54]} 20. Bxf8 {[%emt 0:01:14]} Kxf8 {[%emt 0:00:02]} 21. Kc2 {[%emt 0:00:01]} b4 {[%emt 0:00:13]} 22. Kb3 {[%emt 0:00:02]} Ke7 {[%emt 0:01:08]} 23. g5 {[%emt 0:00:50]} Kd6 {[%emt 0:01:33]} 24. Rhc1 {[%emt 0:01:43] [#]} (24. Bh3 $11 {remains equal.}) 24... R8a7 {[%emt 0:03:18]} (24... c5 $142 $1 {...c4+ would now be deadly.} 25. Bf1 (25. dxc5+ Nxc5+ 26. Rxc5 Kxc5 $17) 25... c4+ 26. Bxc4 dxc4+ 27. Rxc4 Nb6 28. Rxb4 Rxb4+ 29. Kxb4 Rc8) 25. h5 {[%emt 0:00:23]} Nb6 {[%emt 0:00:32]} (25... gxh5 $6 26. Rh1 $14) ({Black should play} 25... b5 $17) 26. Bf1 $15 {[%emt 0:00:18]} Na8 {[%emt 0:00:06]} 27. Bd3 {[%emt 0:00:29]} Nc7 {[%emt 0:00:03]} 28. hxg6 {[%emt 0:00:03]} hxg6 {[%emt 0:00:01]} 29. Rd1 {[%emt 0:02:29]} ({White should try} 29. f4 $15) 29... b6 {[%emt 0:01:09]} 30. Be2 {[%emt 0:00:32]} Ne6 {[%emt 0:00:16]} 31. f4 {[%emt 0:00:03]} Ng7 {[%emt 0:00:49]} 32. Bg4 {[%emt 0:00:31]} Ne8 {[%emt 0:00:55]} 33. f5 {[%emt 0:00:35]} gxf5 {[%emt 0:00:13]} 34. Bxf5 {[%emt 0:00:02]} bxa3 {[%emt 0:00:24]} (34... c5 {with more complications.} 35. Rh1 Ke7 36. g6 c4+) 35. Rxa3 {[%emt 0:00:05]} Rxa3+ {[%emt 0:00:02]} 36. bxa3 {[%emt 0:00:01]} Re7 {[%emt 0:00:01]} 37. Re1 {[%emt 0:00:59]} Ng7 {[%emt 0:00:02]} 38. Bc2 {[%emt 0:00:26]} Ne6 {[%emt 0:00:08]} 39. Rg1 {[%emt 0:00:02]} Re8 {[%emt 0:00:40]} 40. g6 {[%emt 0:00:20]} Rg8 {[%emt 0:00:05]} 41. Kc3 {[%emt 0:00:29]} Nf8 {[%emt 0:00:48]} 42. Rb1 {[%emt 0:00:28]} (42. gxf7 $2 {loses.} Rxg1 43. Bf5 Rc1+ (43... Ke7 $2 44. Bc2 $19) 44. Bc2 Rf1 $19 (44... Ke7 $2 45. Kd2 $19)) 42... fxg6 {[%emt 0:00:03]} 43. Rxb6 {[%emt 0:00:02]} Nd7 {[%emt 0:00:01]} 44. Rb7 {[%emt 0:00:03]} Re8 {[%emt 0:00:58]} 45. Kd2 {[%emt 0:00:10]} Nf8 {[%emt 0:00:27]} 46. Rf7 {[%emt 0:00:32]} Ra8 {[%emt 0:00:13]} 47. a4 {[%emt 0:00:13]} Ke6 {[%emt 0:00:04]} 48. Rg7 {[%emt 0:00:15]} Kd6 {[%emt 0:00:11]} 49. Ke2 {[%emt 0:00:21]} ({Of course not} 49. Bxg6 Nxg6 50. Rxg6+ Kc7 $11) (49. Rg8 $14) 49... c5 $11 {[%emt 0:00:07]} 50. dxc5+ {[%emt 0:00:24]} Kxc5 {[%emt 0:00:01]} 51. Rg8 {[%emt 0:00:02]} (51. Bxg6 Nxg6 52. Rxg6 Rxa4) 51... d4 {[%emt 0:00:14]} 52. e4 {[%emt 0:00:08]} (52. Bxg6 Rxa4 53. exd4+ (53. Rxf8 Ra2+ 54. Kf3 Ra3 $16) 53... Kxd4 $16) 52... Rb8 {[%emt 0:00:19]} 53. Kd2 {[%emt 0:00:21]} Nd7 {[%emt 0:00:24]} 54. Rxg6 {[%emt 0:01:34]} Ne5 {[%emt 0:00:01]} 55. Rg5 {[%emt 0:00:01]} Kd6 {[%emt 0:00:01]} 56. Rh5 {[%emt 0:00:02]} Rb2 {[%emt 0:00:20]} 57. Kc1 {[%emt 0:00:12]} Ra2 {[%emt 0:00:16]} 58. Rh3 {[%emt 0:00:42]} d3 {[%emt 0:00:09]} 59. Bxd3 {[%emt 0:00:06]} Nxd3+ {[%emt 0:00:18]} 60. Rxd3+ {[%emt 0:00:02]} Ke5 {[%emt 0:00:01]} 61. a5 {[%emt 0:00:01]} Kxe4 {[%emt 0:00:03]} 1/2-1/2

[Event "FIDE Open World Rapid 2024"]
[Site "New York"]
[Date "2024.12.27"]
[Round "9.29"]
[White "Jumabayev, Rinat"]
[Black "Sarana, Alexey"]
[Result "1-0"]
[ECO "D02"]
[WhiteElo "2573"]
[BlackElo "2674"]
[Annotator "ChessBase"]
[PlyCount "87"]
[EventDate "2024.12.14"]
[EventType "swiss"]
[EventCountry "USA"]
[SourceTitle "playchess.com"]
[Source "ChessBase"]
[SourceQuality "1"]
[TimeControl "900+10"]

1. Nf3 {[%emt 0:00:01]} d5 {[%emt 0:00:01]} 2. g3 {[%emt 0:00:01]} g6 {[%emt 0:00:02]} 3. Bg2 {[%emt 0:00:06]} Bg7 {[%emt 0:00:01]} 4. d4 {[%emt 0:00:01]} c6 {[%emt 0:00:01]} 5. c4 {[%emt 0:00:04]} dxc4 {[%emt 0:00:03]} 6. a4 {[%emt 0:00:07]} Bg4 {[%emt 0:00:31]} 7. Nbd2 {[%emt 0:01:40]} Bxd4 {[%emt 0:01:52]} 8. Nxc4 {[%emt 0:00:51]} Bxf3 {[%emt 0:01:45]} 9. Bxf3 {[%emt 0:00:02]} Na6 {[%emt 0:00:08]} 10. O-O {[%emt 0:00:33]} Qd7 {[%emt 0:01:40]} 11. Ra3 {[%emt 0:02:50]} Bb6 {[%emt 0:02:53]} 12. Qxd7+ {[%emt 0:02:02]} Kxd7 {[%emt 0:00:01]} 13. Rb3 {[%emt 0:00:25]} Nf6 {[%emt 0:00:30]} 14. Rd1+ {[%emt 0:00:08]} Kc8 {[%emt 0:00:26]} 15. Rxb6 {[%emt 0:01:28]} axb6 {[%emt 0:00:07]} 16. Nxb6+ {[%emt 0:01:09]} Kc7 {[%emt 0:01:03]} 17. Nxa8+ {[%emt 0:00:40]} Rxa8 {[%emt 0:00:02]} 18. Bf4+ {[%emt 0:00:15]} Kb6 {[%emt 0:00:01]} 19. b3 {[%emt 0:00:01]} Nc7 {[%emt 0:02:31]} 20. Be3+ {[%emt 0:00:06]} Ka6 {[%emt 0:00:02]} 21. Bc5 {[%emt 0:00:16]} Re8 {[%emt 0:00:22]} 22. e4 {[%emt 0:00:43]} b6 {[%emt 0:00:07]} 23. Be3 {[%emt 0:00:08]} Kb7 {[%emt 0:00:10]} 24. g4 {[%emt 0:01:21]} h5 {[%emt 0:01:51]} 25. g5 {[%emt 0:00:54]} Ng4 {[%emt 0:00:01]} 26. Bc1 {[%emt 0:00:00]} Ne5 {[%emt 0:00:10]} 27. Be2 {[%emt 0:00:02]} c5 {[%emt 0:00:06]} 28. f4 {[%emt 0:01:48]} Nc6 {[%emt 0:00:01]} 29. Bc4 {[%emt 0:00:05]} Rf8 {[%emt 0:01:01]} 30. f5 {[%emt 0:00:14]} Ne5 {[%emt 0:01:36]} 31. Be2 {[%emt 0:00:29]} Nc6 {[%emt 0:00:01]} 32. Bb2 {[%emt 0:00:39]} Kc8 {[%emt 0:00:40]} 33. Bc4 {[%emt 0:00:11]} Na5 {[%emt 0:00:24]} 34. Bg7 {[%emt 0:00:11]} Nxc4 {[%emt 0:00:24]} 35. Bxf8 {[%emt 0:00:03]} Nd6 {[%emt 0:00:02]} 36. f6 {[%emt 0:00:31]} Ne6 {[%emt 0:00:08]} 37. fxe7 {[%emt 0:00:04]} Ne8 {[%emt 0:00:01]} 38. Kf2 {[%emt 0:00:12]} Kc7 {[%emt 0:00:01]} 39. h4 {[%emt 0:00:17]} Nd4 {[%emt 0:00:02]} 40. b4 {[%emt 0:00:09]} Nc6 {[%emt 0:00:12]} 41. bxc5 {[%emt 0:00:06]} bxc5 {[%emt 0:00:00]} 42. Rd5 {[%emt 0:00:02]} c4 {[%emt 0:00:01]} 43. Ke3 {[%emt 0:00:18]} c3 {[%emt 0:00:01]} 44. Rc5 {[%emt 0:00:10]} 1-0

[Event "FIDE Open World Rapid 2024"]
[Site "New York"]
[Date "2024.12.28"]
[Round "9.29"]
[White "Madaminov, Mukhiddin"]
[Black "Macovei, Andrei"]
[Result "1-0"]
[ECO "C58"]
[WhiteElo "2501"]
[BlackElo "2477"]
[Annotator "ChessBase"]
[PlyCount "205"]
[EventDate "2024.12.14"]
[EventType "swiss"]
[EventCountry "USA"]
[SourceTitle "playchess.com"]
[Source "ChessBase"]
[SourceQuality "1"]
[TimeControl "900+10"]

1. e4 {[%emt 0:00:03]} e5 {[%emt 0:00:00]} 2. Nf3 {[%emt 0:00:03]} Nc6 {[%emt 0:00:01]} 3. Bc4 {[%emt 0:00:04]} Nf6 {[%emt 0:00:03]} 4. Ng5 {[%emt 0:00:03]} d5 {[%emt 0:00:06]} 5. exd5 {[%emt 0:00:02]} Na5 {[%emt 0:00:01]} 6. Bb5+ {[%emt 0:00:02]} Bd7 {[%emt 0:00:02]} 7. Qe2 {[%emt 0:00:03]} Bd6 {[%emt 0:00:21]} 8. Bxd7+ {[%emt 0:00:17]} Qxd7 {[%emt 0:00:02]} 9. Nc3 {[%emt 0:00:03]} h6 {[%emt 0:01:08]} 10. Nf3 {[%emt 0:00:18]} O-O {[%emt 0:00:06]} 11. O-O {[%emt 0:00:08]} c6 {[%emt 0:00:01]} 12. dxc6 {[%emt 0:00:15]} Nxc6 {[%emt 0:01:56]} 13. d3 {[%emt 0:00:02]} Rae8 {[%emt 0:05:48]} 14. Ne4 {[%emt 0:00:17]} Be7 {[%emt 0:00:16]} 15. Nxf6+ {[%emt 0:00:28]} Bxf6 {[%emt 0:00:01]} 16. c3 {[%emt 0:00:02]} Bd8 {[%emt 0:00:28]} 17. Rd1 {[%emt 0:01:09]} f5 {[%emt 0:00:14]} 18. d4 {[%emt 0:00:07]} e4 {[%emt 0:00:26]} 19. Ne5 {[%emt 0:00:31]} Nxe5 {[%emt 0:00:29]} 20. dxe5 {[%emt 0:00:02]} Qe6 {[%emt 0:00:01]} 21. Bf4 {[%emt 0:01:06]} Bc7 {[%emt 0:00:05]} 22. Qb5 {[%emt 0:00:06]} Bxe5 {[%emt 0:01:22]} 23. Bxe5 {[%emt 0:00:54]} Qxe5 {[%emt 0:00:01]} 24. Rd5 {[%emt 0:00:01]} Qf4 {[%emt 0:00:39]} 25. Qc4 {[%emt 0:01:46]} Kh7 {[%emt 0:00:13]} 26. Qd4 {[%emt 0:00:33]} Rf7 {[%emt 0:00:32]} 27. Qxa7 {[%emt 0:02:11]} e3 {[%emt 0:00:45]} 28. fxe3 {[%emt 0:01:31]} Rxe3 {[%emt 0:00:52]} 29. Rf1 {[%emt 0:00:04]} Qg5 {[%emt 0:00:14]} 30. Rdd1 {[%emt 0:02:31]} Rfe7 {[%emt 0:01:09]} 31. Qc5 {[%emt 0:02:38]} Re2 {[%emt 0:00:01]} 32. Qxf5+ {[%emt 0:00:19]} Qxf5 {[%emt 0:00:01]} 33. Rxf5 {[%emt 0:00:03]} Rxb2 {[%emt 0:00:02]} 34. Rf2 {[%emt 0:00:01]} Ree2 {[%emt 0:00:30]} 35. Rxe2 {[%emt 0:00:07]} Rxe2 {[%emt 0:00:01]} 36. Rb1 {[%emt 0:00:02]} Rxa2 {[%emt 0:00:09]} 37. Rxb7 {[%emt 0:00:02]} Rc2 {[%emt 0:00:02]} 38. Rc7 {[%emt 0:00:04]} Kg6 {[%emt 0:00:06]} 39. h3 {[%emt 0:00:03]} Kf6 {[%emt 0:00:10]} 40. Kh2 {[%emt 0:00:02]} h5 {[%emt 0:00:39]} 41. Rc6+ {[%emt 0:00:31]} Kf5 {[%emt 0:00:22]} 42. Rc5+ {[%emt 0:00:03]} Kf4 {[%emt 0:00:13]} 43. h4 {[%emt 0:00:09]} Rc1 {[%emt 0:01:11]} 44. Rxh5 {[%emt 0:01:44]} Kg4 {[%emt 0:00:50]} 45. Rc5 {[%emt 0:00:17]} Kxh4 {[%emt 0:00:00]} 46. Rc4+ {[%emt 0:00:04]} Kg5 {[%emt 0:00:00]} 47. Kg3 {[%emt 0:00:01]} Kf5 {[%emt 0:00:00]} 48. Rc5+ {[%emt 0:00:03]} Kf6 {[%emt 0:00:04]} 49. Kg4 {[%emt 0:00:08]} Rc2 {[%emt 0:00:36]} 50. g3 {[%emt 0:00:17]} Rd2 {[%emt 0:00:24]} 51. Rf5+ {[%emt 0:00:37]} Kg6 {[%emt 0:00:10]} 52. Rf3 {[%emt 0:00:04]} Rd8 {[%emt 0:00:19]} 53. Re3 {[%emt 0:00:10]} Rc8 {[%emt 0:00:06]} 54. Kf4 {[%emt 0:00:01]} Kf6 {[%emt 0:00:10]} 55. Ke4 {[%emt 0:00:05]} Re8+ {[%emt 0:00:20]} 56. Kd3 {[%emt 0:00:05]} Rd8+ {[%emt 0:00:04]} 57. Kc2 {[%emt 0:00:02]} Kf5 {[%emt 0:00:20]} 58. c4 {[%emt 0:00:03]} Rc8 {[%emt 0:00:03]} 59. Kb3 {[%emt 0:00:10]} Rb8+ {[%emt 0:00:24]} 60. Kc3 {[%emt 0:00:04]} Rc8 {[%emt 0:00:01]} 61. Kb3 {[%emt 0:01:20]} Rb8+ {[%emt 0:00:01]} 62. Kc2 {[%emt 0:00:02]} Rc8 {[%emt 0:00:09]} 63. Kc3 {[%emt 0:00:07]} g5 {[%emt 0:00:16]} 64. Rf3+ {[%emt 0:00:30]} Kg4 {[%emt 0:00:03]} 65. Rd3 {[%emt 0:00:04]} Kh3 {[%emt 0:00:12]} 66. Kb4 {[%emt 0:00:28]} Rb8+ {[%emt 0:00:03]} 67. Ka4 {[%emt 0:00:04]} Ra8+ {[%emt 0:00:03]} 68. Kb3 {[%emt 0:00:02]} Rb8+ {[%emt 0:00:00]} 69. Kc2 {[%emt 0:00:14]} Rc8 {[%emt 0:00:11]} 70. Rc3 {[%emt 0:00:01]} Rc5 {[%emt 0:00:19]} 71. Kd3 {[%emt 0:00:05]} Rc8 {[%emt 0:00:32]} 72. Kd4 {[%emt 0:00:08]} Rd8+ {[%emt 0:00:10]} 73. Ke5 {[%emt 0:00:03]} Re8+ {[%emt 0:00:09]} 74. Kf5 {[%emt 0:00:05]} g4 {[%emt 0:00:02]} 75. c5 {[%emt 0:00:02]} Rf8+ {[%emt 0:00:07]} 76. Ke4 {[%emt 0:00:05]} Re8+ {[%emt 0:00:05]} 77. Kd4 {[%emt 0:00:03]} Rd8+ {[%emt 0:00:04]} 78. Kc4 {[%emt 0:00:56]} Rc8 {[%emt 0:00:01]} 79. Kd5 {[%emt 0:00:47]} Rd8+ {[%emt 0:00:02]} 80. Ke5 {[%emt 0:00:06]} Re8+ {[%emt 0:00:18]} 81. Kd5 {[%emt 0:00:28]} Rd8+ {[%emt 0:00:02]} 82. Kc4 {[%emt 0:00:13]} Rc8 {[%emt 0:00:02]} 83. Kb4 {[%emt 0:00:01]} Rb8+ {[%emt 0:00:02]} 84. Ka3 {[%emt 0:00:06]} Ra8+ {[%emt 0:00:06]} 85. Kb3 {[%emt 0:00:03]} Rb8+ {[%emt 0:00:06]} 86. Kc2 {[%emt 0:00:01]} Rc8 {[%emt 0:00:25]} 87. Kd2 {[%emt 0:00:18]} Rd8+ {[%emt 0:00:12]} 88. Ke2 {[%emt 0:00:02]} Re8+ {[%emt 0:00:02]} 89. Kf2 {[%emt 0:00:02]} Rf8+ {[%emt 0:00:59]} 90. Kg1 {[%emt 0:00:31]} Ra8 {[%emt 0:00:12]} 91. Kf2 {[%emt 0:00:08]} Rf8+ {[%emt 0:00:07]} 92. Ke2 {[%emt 0:00:03]} Re8+ {[%emt 0:00:02]} 93. Kd2 {[%emt 0:00:01]} Rd8+ {[%emt 0:00:02]} 94. Kc2 {[%emt 0:00:02]} Rc8 {[%emt 0:00:03]} 95. c6 {[%emt 0:00:17]} Rc7 {[%emt 0:00:22]} 96. Kd1 {[%emt 0:00:43]} Kg2 {[%emt 0:00:09]} 97. Ke2 {[%emt 0:00:01]} Re7+ {[%emt 0:00:08]} 98. Kd3 {[%emt 0:00:04]} Kxg3 {[%emt 0:00:39]} 99. c7 {[%emt 0:00:01]} Rxc7 {[%emt 0:00:22]} 100. Rxc7 {[%emt 0:00:02]} Kf2 {[%emt 0:00:05]} 101. Rf7+ {[%emt 0:00:04]} Kg2 {[%emt 0:00:01]} 102. Ke2 {[%emt 0:00:02]} g3 {[%emt 0:00:04]} 103. Rg7 {[%emt 0:00:02]} 1-0

[Event "FIDE Open World Rapid 2024"]
[Site "New York"]
[Date "2024.12.28"]
[Round "9.30"]
[White "Christiansen, Johan-Sebastian"]
[Black "Sharshenbekov, Emir"]
[Result "0-1"]
[ECO "B15"]
[WhiteElo "2661"]
[BlackElo "2078"]
[Annotator "ChessBase"]
[PlyCount "134"]
[EventDate "2024.12.14"]
[EventType "swiss"]
[EventCountry "USA"]
[SourceTitle "playchess.com"]
[Source "ChessBase"]
[SourceQuality "1"]
[TimeControl "900+10"]

1. e4 {[%emt 0:00:01]} c6 {[%emt 0:00:37]} 2. d4 {[%emt 0:00:02]} d5 {[%emt 0:00:02]} 3. Nd2 {[%emt 0:00:01]} dxe4 {[%emt 0:00:38]} 4. Nxe4 {[%emt 0:00:01]} Nf6 {[%emt 0:00:04]} 5. Nxf6+ {[%emt 0:00:01]} exf6 {[%emt 0:00:02]} 6. c3 {[%emt 0:00:02]} Bd6 {[%emt 0:00:08]} 7. Bd3 {[%emt 0:00:01]} O-O {[%emt 0:00:08]} 8. Qc2 {[%emt 0:00:02]} h6 {[%emt 0:00:34]} 9. Ne2 {[%emt 0:00:01]} Re8 {[%emt 0:00:09]} 10. O-O {[%emt 0:00:03]} Qc7 {[%emt 0:00:04]} 11. h3 {[%emt 0:00:03]} Nd7 {[%emt 0:00:04]} 12. Bd2 {[%emt 0:00:02]} Nf8 {[%emt 0:00:39]} 13. Rae1 {[%emt 0:00:02]} Bd7 {[%emt 0:00:26]} 14. c4 {[%emt 0:00:13]} Ne6 {[%emt 0:00:41]} 15. c5 {[%emt 0:00:23]} Bh2+ {[%emt 0:01:21]} 16. Kh1 {[%emt 0:00:02]} Bf4 {[%emt 0:00:01]} 17. Bc3 {[%emt 0:00:37]} h5 {[%emt 0:00:10]} 18. Bc4 {[%emt 0:01:59]} h4 {[%emt 0:00:42]} 19. b4 {[%emt 0:01:35]} Rad8 {[%emt 0:02:12]} 20. Bb2 {[%emt 0:04:45]} Ng5 {[%emt 0:03:07]} 21. Qb3 {[%emt 0:02:33]} Be6 {[%emt 0:00:32]} 22. Rd1 {[%emt 0:01:11]} Ne4 {[%emt 0:01:42]} 23. Bxe6 {[%emt 0:00:34]} Rxe6 {[%emt 0:00:06]} 24. Qc2 {[%emt 0:01:44]} Rd5 {[%emt 0:00:34]} 25. Ng1 {[%emt 0:00:19]} f5 {[%emt 0:01:37]} 26. Rde1 {[%emt 0:00:55]} g5 {[%emt 0:01:16]} 27. Nf3 {[%emt 0:00:20]} f6 {[%emt 0:00:36]} 28. Bc1 {[%emt 0:00:34]} Kf7 {[%emt 0:00:06]} 29. b5 {[%emt 0:00:20]} Bxc1 {[%emt 0:00:59]} 30. Qxc1 {[%emt 0:00:09]} cxb5 {[%emt 0:00:10]} 31. Re3 {[%emt 0:00:09]} b6 {[%emt 0:00:29]} 32. Kg1 {[%emt 0:01:29]} bxc5 {[%emt 0:00:04]} 33. dxc5 {[%emt 0:00:02]} Qxc5 {[%emt 0:00:20]} 34. Qb2 {[%emt 0:00:10]} Nxf2 {[%emt 0:00:16]} 35. Rc3 {[%emt 0:00:01]} Nxh3+ {[%emt 0:00:09]} 36. Kh1 {[%emt 0:00:05]} Nf2+ {[%emt 0:00:09]} 37. Kg1 {[%emt 0:00:17]} Nh3+ {[%emt 0:00:12]} 38. Kh1 {[%emt 0:00:00]} Qe7 {[%emt 0:00:08]} 39. gxh3 {[%emt 0:00:05]} Kg6 {[%emt 0:00:06]} 40. Rc2 {[%emt 0:00:13]} Re3 {[%emt 0:00:08]} 41. Rg2 {[%emt 0:00:03]} Qe4 {[%emt 0:00:02]} 42. Qf2 {[%emt 0:00:11]} Kh5 {[%emt 0:00:16]} 43. Kg1 {[%emt 0:00:16]} f4 {[%emt 0:00:15]} 44. Nd2 {[%emt 0:00:42]} Qe6 {[%emt 0:00:12]} 45. Nf3 {[%emt 0:00:06]} Qxh3 {[%emt 0:00:14]} 46. Rh2 {[%emt 0:00:09]} Qg3+ {[%emt 0:00:07]} 47. Rg2 {[%emt 0:00:02]} Qxf2+ {[%emt 0:00:03]} 48. Rgxf2 {[%emt 0:00:04]} Rdd3 {[%emt 0:00:11]} 49. Nh2 {[%emt 0:00:07]} f5 {[%emt 0:00:09]} 50. Rc2 {[%emt 0:00:03]} Rg3+ {[%emt 0:00:19]} 51. Kh1 {[%emt 0:00:02]} Ra3 {[%emt 0:00:08]} 52. Rd1 {[%emt 0:00:08]} Rgd3 {[%emt 0:00:09]} 53. Re1 {[%emt 0:00:05]} g4 {[%emt 0:00:11]} 54. Rc5 {[%emt 0:00:01]} Kg5 {[%emt 0:00:05]} 55. Nf1 {[%emt 0:00:24]} Rd7 {[%emt 0:00:17]} 56. Ree5 {[%emt 0:00:03]} Rf7 {[%emt 0:00:02]} 57. Nd2 {[%emt 0:00:10]} g3 {[%emt 0:00:15]} 58. Re8 {[%emt 0:00:14]} Kg4 {[%emt 0:00:09]} 59. Rg8+ {[%emt 0:00:04]} Kh3 {[%emt 0:00:04]} 60. Rc2 {[%emt 0:00:12]} Re7 {[%emt 0:00:10]} 61. Rc1 {[%emt 0:00:28]} Re2 {[%emt 0:00:13]} 62. Rd8 {[%emt 0:00:38]} Rh2+ {[%emt 0:00:11]} 63. Kg1 {[%emt 0:00:03]} Rxa2 {[%emt 0:00:03]} 64. Rd1 {[%emt 0:00:01]} f3 {[%emt 0:00:07]} 65. Rd3 {[%emt 0:00:21]} f2+ {[%emt 0:00:05]} 66. Kf1 {[%emt 0:00:01]} Rh1+ {[%emt 0:00:05]} 67. Ke2 {[%emt 0:00:00]} Rxd1 {[%emt 0:00:02]} 0-1